[Event "Slovakia Open 2022"]
[Site "Bratislava"]
[Date "2022.10.02"]
[Round "9.12"]
[White "Nestorenko, Dmitry"]
[Black "Pasti, Zsombor"]
[Result "1-0"]
[ECO "C44"]
[WhiteElo "2168"]
[BlackElo "1884"]
[Annotator "TA"]
[PlyCount "77"]
[EventDate "2022.09.30"]
[EventCountry "SVK"]
[SourceTitle "playchess.com"]
[Source "ChessBase"]
[SourceQuality "1"]
[TimeControl "2700+10"]

{[%evp 12,77,0,-7,24,6,28,-24,-21,-25,-26,-21,-27,-19,-21,-31,-22,-13,0,25,39,6,11,22,43,0,68,64,92,65,111,84,139,139,147,143,147,156,178,177,171,176,312,139,305,307,366,361,409,415,547,547,534,476,476,472,466,462,671,654,668,609,1032,1023,1006,977,965,922]} 1. e4 {[%emt 0:05:41]} e5 {[%emt 0:00:34]} 2. Nf3 {[%emt 0:00:01]} Nc6 {[%emt 0:00:01]} 3. c3 {[%emt 0:00:01]} Nf6 {[%emt 0:00:03]} 4. d4 {[%emt 0:00:01]} exd4 {[%emt 0:00:09]} 5. e5 {[%emt 0:00:10]} Nd5 {[%emt 0:00:26]} 6. cxd4 {[%emt 0:00:00]} d6 {[%emt 0:00:31]} 7. Bb5 {[%emt 0:02:01]} Bd7 {[%emt 0:00:46] C44: Ponziani Opening and Scotch Gambit.} 8. Qe2 {[%emt 0:00:12] Black should prevent Bc4.} dxe5 {[%emt 0:00:30] Strongly threatening ...Bb4+.} 9. Bxc6 {[%emt 0:00:05]} (9. O-O $142 $1) 9... Bxc6 {[%emt 0:00:23] Black has an edge.} 10. Nxe5 {[%emt 0:00:07]} Bb4+ {[%emt 0:00:05]} 11. Bd2 {[%emt 0:00:01] [#]} Bxd2+ $146 {[%emt 0:00:02]} ({Predecessor:} 11... O-O 12. Nxc6 bxc6 13. O-O Re8 14. Qc4 Bxd2 15. Nxd2 Nf4 16. Nf3 Qd5 17. Qxd5 cxd5 {½-½ (55) Panainte,A (1718)-Nistor,V (1676) Calimanesti Caciulata 2016}) 12. Nxd2 {[%emt 0:00:04]} O-O {[%emt 0:00:03]} 13. Nxc6 {[%emt 0:00:08]} bxc6 {[%emt 0:00:03]} 14. O-O {[%emt 0:00:03]} Re8 {[%emt 0:00:57]} 15. Qf3 {[%emt 0:00:28]} Nf6 {[%emt 0:00:56]} 16. Nb3 {[%emt 0:00:51]} Qd5 {[%emt 0:00:21]} (16... a5 {is interesting.} 17. Qxc6 a4 18. Nd2 Qxd4 19. Nc4 Qd5) 17. Qxd5 {[%emt 0:00:22]} (17. Rfc1 {feels hotter.} Re4 18. Re1 a5 19. Rxe4 Nxe4 20. Re1) 17... cxd5 {[%emt 0:00:01]} 18. Rac1 {[%emt 0:00:02]} Rac8 {[%emt 0:00:02]} (18... Re2 $11) 19. Rc2 $14 {[%emt 0:00:05]} Re7 {[%emt 0:01:31]} 20. f3 {[%emt 0:00:15]} Kf8 {[%emt 0:00:04]} (20... Nh5 $14) 21. Rfc1 {[%emt 0:00:36]} Ke8 {[%emt 0:00:40]} (21... Nh5 $142) 22. Na5 $16 {[%emt 0:00:05]} a6 {[%emt 0:02:20]} 23. Kf2 {[%emt 0:00:27]} Kf8 {[%emt 0:02:28]} 24. Rc6 {[%emt 0:00:48]} Rce8 {[%emt 0:01:24] [#]} 25. R1c2 {[%emt 0:00:33] Against Re2+} (25. Rxa6 Re2+ 26. Kf1 Rxb2 $11) 25... Nh5 {[%emt 0:00:42] [#]} 26. g3 {[%emt 0:00:51] Inhibits Nf4.} (26. Rxc7 $6 Rxc7 27. Rxc7 Nf4 $16) 26... Rb8 {[%emt 0:00:34]} (26... g6 $142 27. Rxc7 (27. Rxa6 Re1 $16) 27... Ng7 28. Rxe7 Rxe7) 27. Nb3 {[%emt 0:00:09]} (27. Rxa6 $18 {Nc6 is the strong threat.} Re6 28. Ra7) 27... a5 {[%emt 0:00:46] Loses the game.} (27... g5 $16 {is a better defense.} 28. Nc5 (28. Rxa6 Ng7 $16) (28. Rxc7 Rxc7 29. Rxc7 Rb4 $16) 28... Rb4) 28. Nxa5 $18 {[%emt 0:00:17]} ({Not} 28. Rxc7 Rxc7 29. Rxc7 a4 $11) 28... Ra8 {[%emt 0:00:01]} 29. b4 {[%emt 0:00:02]} Ra7 {[%emt 0:00:07]} 30. R6c5 {[%emt 0:01:09] Hoping for Nc6.} Rd7 {[%emt 0:00:22]} 31. Nc6 {[%emt 0:00:08] White is clearly winning.} Ra8 {[%emt 0:00:18]} 32. Ne5 {[%emt 0:00:16]} Re7 {[%emt 0:00:05]} 33. Rxd5 {[%emt 0:00:11]} Nf6 {[%emt 0:04:35]} 34. Ra5 {[%emt 0:02:05]} Rxa5 {[%emt 0:00:59]} (34... Rc8 $142 35. a4 Re6) 35. bxa5 {[%emt 0:00:01][%cal Bb4a5,Ba5a6,Ba6a7][%mdl 32]} Nd5 {[%emt 0:00:19]} 36. a6 {[%emt 0:01:53] aiming for a7.} f6 {[%emt 0:00:40]} 37. a7 {[%emt 0:01:44]} Re8 {[%emt 0:00:03]} 38. Nd7+ {[%emt 0:01:07]} Kf7 {[%emt 0:00:10]} 39. Nb8 {[%emt 0:00:12] Weighted Error Value: White=0.17 (very precise) /Black=0.41} 1-0

[Event "Slovakia Open 2022"]
[Site "Bratislava"]
[Date "2022.10.02"]
[Round "9.13"]
[White "Krajnak, Robert"]
[Black "Rakhmangulova, Anastasiya"]
[Result "1/2-1/2"]
[ECO "A26"]
[WhiteElo "1931"]
[BlackElo "2244"]
[Annotator "TA"]
[PlyCount "63"]
[EventDate "2022.09.30"]
[EventCountry "SVK"]
[SourceTitle "playchess.com"]
[Source "ChessBase"]
[SourceQuality "1"]
[TimeControl "2700+10"]

{[%evp 16,63,18,14,26,24,41,33,24,16,37,10,1,-22,-29,-28,6,0,31,35,30,49,102,95,154,157,140,128,258,258,516,504,506,481,472,291,605,588,560,529,552,537,527,507,462,222,29991,401,29990,562]} 1. c4 {[%emt 0:00:05]} g6 {[%emt 0:00:04]} 2. Nc3 {[%emt 0:00:07]} Bg7 {[%emt 0:00:01]} 3. g3 {[%emt 0:00:02]} Nf6 {[%emt 0:00:08]} 4. Bg2 {[%emt 0:00:03]} d6 {[%emt 0:00:01]} 5. Nf3 {[%emt 0:00:09]} O-O {[%emt 0:00:02]} 6. O-O {[%emt 0:00:04]} a6 {[%emt 0:00:22]} 7. d3 {[%emt 0:00:19]} Nc6 {[%emt 0:00:15]} 8. Rb1 {[%emt 0:00:10]} e5 {[%emt 0:02:23]} 9. b4 {[%emt 0:00:24]} Ne7 {[%emt 0:00:04] A26: English Opening vs King's Indian with ...Nc6 and d3.} 10. Bd2 {[%emt 0:02:27] [#]} Nd7 $146 {[%emt 0:00:54]} ({Predecessor:} 10... h6 11. a4 Nd7 12. b5 axb5 13. axb5 f5 14. Qb3 Kh7 15. Rfc1 f4 16. Na4 g5 {0-1 (42) Gross,M (1713)-Both,G Berlin 2003}) 11. Qc2 {[%emt 0:00:32]} f5 {[%emt 0:00:57] White is slightly better.} 12. Rfc1 {[%emt 0:00:20][%cal Oc4c5]} c6 {[%emt 0:00:13]} 13. Be1 {[%emt 0:00:24]} h6 {[%emt 0:02:23]} 14. Nd2 {[%emt 0:01:20][%cal Bf3d2,Bd2e4,Be4f6][%mdl 32]} g5 {[%emt 0:01:22]} 15. a4 {[%emt 0:03:22]} Nf6 {[%emt 0:03:25]} 16. b5 {[%emt 0:00:41]} Qe8 {[%emt 0:01:10]} 17. bxc6 {[%emt 0:00:41]} bxc6 {[%emt 0:00:02]} 18. Rb6 {[%emt 0:01:39]} f4 {[%emt 0:02:26]} ({Black should try} 18... g4 $14) 19. Nde4 $16 {[%emt 0:01:52] White is more active.} Qh5 {[%emt 0:01:42] [#]} ({Better is} 19... Qd7) 20. Nxf6+ $1 {[%emt 0:00:22]} ({Not} 20. Nxd6 fxg3 21. hxg3 Ng4 $17) 20... Bxf6 {[%emt 0:00:16]} 21. Ne4 {[%emt 0:00:08]} Bg4 {[%emt 0:01:48] Loses the game.} (21... Bh3 $16) 22. Rb7 $18 {[%emt 0:02:41]} ({Weaker is} 22. Nxd6 Bxe2 23. Bb4 f3 $16) 22... Bxe2 $2 {[%emt 0:11:44]} (22... Qg6 {was necessary.} 23. Nxd6 Bg7) 23. Nxf6+ {[%emt 0:00:32]} Rxf6 {[%emt 0:00:02]} 24. Rxe7 {[%emt 0:00:07] d4 is the strong threat.} f3 {[%emt 0:00:01]} 25. Bh1 {[%emt 0:00:08]} Rf4 $2 {[%emt 0:00:02] [#]} (25... Re8) 26. d4 $1 {[%emt 0:00:36] Intending Qh7+ and mate.} Rf7 {[%emt 0:04:08] Against Qh7+} 27. Rxf7 {[%emt 0:00:46]} Qxf7 {[%emt 0:00:01]} 28. dxe5 {[%emt 0:01:54]} dxe5 {[%emt 0:00:10]} 29. Bc3 {[%emt 0:01:05]} Qf6 {[%emt 0:00:25]} 30. Bxe5 {[%emt 0:01:12]} h5 $2 {[%emt 0:01:44]} (30... Qxe5 $18 31. Qg6+ Qg7 32. Qxc6 Rf8 33. Qxa6 Qf6) 31. c5 {[%emt 0:00:33]} g4 {[%emt 0:00:07]} (31... Qxe5 $18 32. Qg6+ Kf8 33. Qxc6 Re8 34. Bxf3 Qe6 35. Qxe6 Rxe6) 32. Bc7 {[%emt 0:00:39][%mdl 32768] Weighted Error Value: White=0.46/Black=1.17. An unexpected result.} (32. Bxf6 $142 Kf7 33. Bd4 Rf8 34. Qf5+ Ke7 35. Qe5+ Kd8 36. Rb1 Bb5 37. axb5) 1/2-1/2

[Event "Slovakia Open 2022"]
[Site "Bratislava"]
[Date "2022.10.02"]
[Round "9.14"]
[White "Lecky, Juraj"]
[Black "Mandak, Miroslav"]
[Result "1-0"]
[ECO "A45"]
[WhiteElo "2070"]
[BlackElo "1864"]
[Annotator "TA"]
[PlyCount "79"]
[EventDate "2022.09.30"]
[EventCountry "SVK"]
[SourceTitle "playchess.com"]
[Source "ChessBase"]
[SourceQuality "1"]
[TimeControl "2700+10"]

{[%evp 9,79,16,19,14,15,-2,0,0,15,0,1,0,14,10,23,29,21,20,32,24,27,22,26,28,26,28,27,28,27,34,38,32,88,77,104,89,130,100,90,80,84,42,65,70,60,70,72,77,89,103,93,45,66,-27,66,0,93,76,114,162,481,465,466,469,565,555,1392,1339,1435,1438,29991,29992]} 1. d4 {[%emt 0:00:02]} Nf6 {[%emt 0:00:13]} 2. Bg5 {[%emt 0:00:02]} Ne4 {[%emt 0:00:59]} 3. h4 {[%emt 0:00:01]} h6 {[%emt 0:00:56]} 4. Bf4 {[%emt 0:00:05]} d5 {[%emt 0:00:17]} 5. Nd2 {[%emt 0:00:07]} Bf5 {[%emt 0:01:11]} 6. Nxe4 {[%emt 0:00:02] A45: Trompowsky Attack.} Bxe4 {[%emt 0:00:13]} 7. f3 {[%emt 0:00:02]} Bg6 {[%emt 0:02:02]} 8. e3 {[%emt 0:00:16] The position is equal.} e6 {[%emt 0:00:39]} 9. Bd3 {[%emt 0:00:01]} Bxd3 {[%emt 0:00:15]} 10. Qxd3 {[%emt 0:00:02]} Bd6 {[%emt 0:00:24]} 11. Ne2 {[%emt 0:01:22]} c6 {[%emt 0:03:55]} 12. O-O-O {[%emt 0:01:05] [#]} Qc7 $146 {[%emt 0:01:29]} ({Predecessor:} 12... Bxf4 13. Nxf4 Qd6 14. Nh5 Rg8 15. e4 Nd7 16. e5 Qe7 17. Kb1 O-O-O 18. g4 g6 {1-0 (44) Konenkin,D (2247)-Kolyuzhnov,V (1854) Kolomna 2015}) 13. Kb1 {[%emt 0:02:15]} Nd7 {[%emt 0:00:25]} 14. Bxd6 {[%emt 0:01:56]} Qxd6 {[%emt 0:01:41]} 15. e4 {[%emt 0:00:02]} O-O-O {[%emt 0:00:42]} 16. e5 {[%emt 0:04:22]} Qe7 {[%emt 0:02:17]} 17. h5 {[%emt 0:00:22]} Kb8 {[%emt 0:00:24]} 18. g4 {[%emt 0:01:41]} Rc8 {[%emt 0:01:56]} 19. f4 {[%emt 0:13:53][%cal Bf3f4,Bf4f5][%mdl 32]} c5 {[%emt 0:03:32]} 20. c3 {[%emt 0:00:11]} c4 {[%emt 0:02:49]} (20... cxd4 $14 21. cxd4 (21. Nxd4 Nc5 $11) 21... Rc6) 21. Qg3 $16 {[%emt 0:01:37]} Ka8 {[%emt 0:01:02]} 22. f5 {[%emt 0:04:16]} Rc6 {[%emt 0:05:19]} 23. Rhf1 {[%emt 0:01:28]} b5 {[%emt 0:01:17]} 24. Nf4 {[%emt 0:00:57] [#] And now fxe6 would win.} Rb8 {[%emt 0:00:54]} 25. a3 {[%emt 0:06:36] Against b4. Hoping for fxe6.} a5 {[%emt 0:00:30]} 26. fxe6 {[%emt 0:00:05]} fxe6 {[%emt 0:00:03]} 27. Ng6 {[%emt 0:00:03]} Qe8 {[%emt 0:01:24]} 28. Kc2 {[%emt 0:00:34] aiming for Qf4.} Ra6 {[%emt 0:02:02]} 29. Ra1 {[%emt 0:00:02]} Ra7 {[%emt 0:03:30]} 30. Rf3 {[%emt 0:01:59] White has more active pieces.} (30. Kd2 $16) 30... Rbb7 $14 {[%emt 0:03:20]} 31. Raf1 {[%emt 0:02:31]} (31. Qf4 $14) 31... Rb8 {[%emt 0:00:13]} (31... Nb8 $1 $11) 32. Ra1 {[%emt 0:00:38]} ({White should play} 32. Rf7 $14) 32... Rab7 {[%emt 0:00:17]} (32... Rbb7 $1 $11) 33. Qf2 $16 {[%emt 0:00:06]} Ra7 {[%emt 0:02:00]} 34. Rf7 $36 {[%emt 0:00:09][%mdl 2048] Black is under strong pressure.} Rab7 $2 {[%emt 0:01:33]} (34... Qg8 {is a better chance.} 35. Qf3 Re8) 35. Re7 $18 {[%emt 0:00:19]} Qd8 {[%emt 0:00:06]} 36. Rxe6 {[%emt 0:00:06]} Rb6 {[%emt 0:00:27] [#]} 37. Qf3 $1 {[%emt 0:00:22]} Nf8 {[%emt 0:00:37]} (37... Rxe6 38. Qxd5+) 38. Nxf8 {[%emt 0:00:05][%cal Bg6f8,Bf8e6,Be6d8][%mdl 32]} Rxe6 {[%emt 0:00:14]} 39. Nxe6 {[%emt 0:00:02]} Rc8 {[%emt 0:00:13]} 40. Nxd8 {[%emt 0:00:02] Weighted Error Value: White=0.13 (very precise) /Black=0.54} 1-0

[Event "Slovakia Open 2022"]
[Site "Bratislava"]
[Date "2022.10.02"]
[Round "9.15"]
[White "Balint, Peter"]
[Black "Chlpek, Daniel"]
[Result "1/2-1/2"]
[ECO "C84"]
[WhiteElo "2235"]
[BlackElo "2020"]
[Annotator "TA"]
[PlyCount "60"]
[EventDate "2022.09.30"]
[EventCountry "SVK"]
[SourceTitle "playchess.com"]
[Source "ChessBase"]
[SourceQuality "1"]
[TimeControl "2700+10"]

{[%evp 11,60,31,46,-6,-10,-36,-23,-31,0,-27,-24,-22,-19,-23,-22,-25,-17,-16,-18,-23,-16,-24,-23,-28,-13,-20,-8,-51,-51,-53,-18,-10,-14,-11,0,-10,-7,-7,0,-30,-20,-50,0,-139,-19,-10,-25,-61,-56,-64,0]} 1. e4 {[%emt 0:00:04]} e5 {[%emt 0:00:08]} 2. Nf3 {[%emt 0:00:01]} Nc6 {[%emt 0:00:02]} 3. Bb5 {[%emt 0:00:01]} a6 {[%emt 0:00:13]} 4. Ba4 {[%emt 0:00:01]} Nf6 {[%emt 0:00:02]} 5. O-O {[%emt 0:00:03]} Nxe4 {[%emt 0:00:02]} 6. d4 {[%emt 0:00:02]} Be7 {[%emt 0:00:02]} 7. dxe5 {[%emt 0:01:56] C84: Closed Ruy Lopez: Unusual White 6th moves.} (7. Re1 $14 f5 8. dxe5 (8. Bxc6 dxc6 9. Nxe5 O-O $14)) 7... Nc5 $11 {[%emt 0:00:01]} 8. Bb3 {[%emt 0:00:21]} Nxb3 {[%emt 0:00:05]} 9. axb3 {[%emt 0:00:01] Black has an edge.} O-O {[%emt 0:00:03]} 10. Nc3 {[%emt 0:00:04]} d6 {[%emt 0:00:14] [#]} 11. exd6 $146 {[%emt 0:00:19]} ({Predecessor:} 11. Bf4 dxe5 12. Nxe5 Nxe5 13. Bxe5 c6 14. Re1 Qxd1 15. Raxd1 Be6 16. Bd6 Bxd6 17. Rxd6 {0-1 (61) Neumann,J (2220)-Sydor,A (2335) Lyngby 1988}) 11... Qxd6 {[%emt 0:02:32]} 12. Qxd6 {[%emt 0:02:04]} Bxd6 {[%emt 0:00:02]} 13. Ne4 {[%emt 0:00:02]} Be7 {[%emt 0:07:27]} 14. Bf4 {[%emt 0:02:04]} Bf5 {[%emt 0:00:11]} 15. Rfe1 {[%emt 0:00:11]} Rac8 {[%emt 0:02:45]} 16. c3 {[%emt 0:00:19]} h6 {[%emt 0:00:34]} 17. Ng3 {[%emt 0:01:33]} Be6 {[%emt 0:00:23]} 18. b4 {[%emt 0:00:08]} Rfd8 {[%emt 0:03:18]} 19. Rad1 {[%emt 0:06:26]} Rxd1 {[%emt 0:00:09]} 20. Rxd1 {[%emt 0:00:01]} Rd8 {[%emt 0:00:02]} 21. Re1 {[%emt 0:02:20]} Rd7 {[%emt 0:01:28]} 22. h4 {[%emt 0:03:33]} Bg4 {[%emt 0:02:31]} 23. h5 {[%emt 0:00:32]} Kf8 {[%emt 0:01:19]} 24. Nd2 {[%emt 0:03:38]} Be6 {[%emt 0:06:28]} 25. Ra1 {[%emt 0:02:25]} f6 {[%emt 0:02:06]} 26. f3 {[%emt 0:01:42]} Kf7 {[%emt 0:00:14]} (26... f5 $15) 27. Kf2 {[%emt 0:00:23]} (27. Nde4 $11 {keeps the balance.}) 27... Rd5 {[%emt 0:01:14]} (27... Ne5 $17 {aiming for ...Nd3+.} 28. Bxe5 Rxd2+ 29. Ke3 Rxg2 30. Bxc7 Rxb2) 28. Ke2 {[%emt 0:00:55]} Ne5 {[%emt 0:00:32]} 29. Rb1 {[%emt 0:02:05]} c6 {[%emt 0:00:35]} 30. Nge4 {[%emt 0:00:48]} Bf5 {[%emt 0:01:55] Weighted Error Value: White=0.24 (precise) /Black=0.18 (very precise)} ({Better is} 30... Nd3 $15 31. Be3 f5) 1/2-1/2

[Event "Slovakia Open 2022"]
[Site "Bratislava"]
[Date "2022.10.02"]
[Round "9.16"]
[White "Meszaros, Casey Ryan"]
[Black "Panko, Radoslav"]
[Result "1-0"]
[ECO "C14"]
[WhiteElo "1925"]
[BlackElo "1996"]
[Annotator "TA"]
[PlyCount "83"]
[EventDate "2022.09.30"]
[EventCountry "SVK"]
[SourceTitle "playchess.com"]
[Source "ChessBase"]
[SourceQuality "1"]
[TimeControl "2700+10"]

{[%evp 11,83,29,21,-9,-23,-87,-41,-36,-34,-44,-41,-36,-37,-34,-18,-95,-46,-86,-40,-154,-108,-178,-200,-214,-137,-121,221,216,189,187,93,110,97,105,591,104,95,102,110,97,123,135,137,99,109,100,186,183,212,211,406,407,402,387,490,472,480,465,527,524,535,497,454,0,515,512,658,651,621,603,691,681,29984,29985]} 1. d4 {[%emt 0:00:16]} e6 {[%emt 0:00:05]} 2. e4 {[%emt 0:00:10]} d5 {[%emt 0:00:02]} 3. Nc3 {[%emt 0:00:04]} Nf6 {[%emt 0:00:04]} 4. Bg5 {[%emt 0:00:42]} Be7 {[%emt 0:00:04]} 5. e5 {[%emt 0:00:05]} Nfd7 {[%emt 0:00:02]} 6. h4 {[%emt 0:00:12]} O-O {[%emt 0:00:04]} 7. Nf3 {[%emt 0:00:14] C14: French: Classical System: 4 Bg5 Be7 main line.} (7. Qg4 $5 {[%cal Rg5h6]} Kh8 8. Qh5 $11) 7... c5 {[%emt 0:00:13] [#]} 8. Qd3 $146 {[%emt 0:02:14]} (8. dxc5 $11 Nc6 9. Qe2) ({Predecessor:} 8. dxc5 Nc6 9. Bd3 Ndxe5 10. Nxe5 Nxe5 11. Bxh7+ Kxh7 12. Bxe7 Qxe7 13. Qh5+ Kg8 14. Qxe5 Qxc5 {0-1 (45) Hauge,L (2513)-Johannsson,O (2236) Reykjavik 2022}) 8... cxd4 {[%emt 0:00:19]} (8... Nc6 $17 9. Bxe7 Qxe7 10. dxc5 (10. Ng5 g6 $17) 10... Ndxe5 11. Nxe5 Nxe5) 9. Bxe7 {[%emt 0:00:24] Black is slightly better.} Qxe7 {[%emt 0:00:02]} 10. Qxd4 {[%emt 0:04:17]} (10. Ng5 f5 11. Qxd4 Nc6 $17) 10... Nc6 {[%emt 0:00:07]} 11. Qe3 {[%emt 0:00:48]} a6 {[%emt 0:08:17]} 12. Bd3 {[%emt 0:01:32]} b5 {[%emt 0:00:17]} 13. Qe2 {[%emt 0:01:34]} (13. h5 $11 {remains equal.}) 13... Rd8 {[%emt 0:07:26]} (13... Qb4 $17 14. O-O-O Qf4+ 15. Kb1 Ndxe5 16. Nxe5 Nxe5) 14. Rh3 {[%emt 0:06:39]} Qb4 {[%emt 0:01:54]} (14... Bb7 $17 {And now ...d4 would win.} 15. a3 b4) 15. Ng5 {[%emt 0:04:39] [#]} (15. Kf1 $15) 15... Nf8 {[%emt 0:01:47]} (15... Qxb2 $2 16. Bxh7+ Kf8 17. Rb1 $18) (15... h6 $142 $1 {[%cal Rh6g5]} 16. Bh7+ Kf8) 16. Qh5 {[%emt 0:05:09]} (16. Kf1 $17 {is a better defense.}) 16... g6 $19 {[%emt 0:01:43]} (16... Nxe5 17. Bxh7+ Nxh7 18. Qxh7+ Kf8 19. Qh8+ Ke7 20. Qxg7 $16) 17. Qf3 {[%emt 0:03:25]} Nxe5 {[%emt 0:05:22]} 18. Qf6 {[%emt 0:00:43]} Qd6 $2 {[%emt 0:00:20][%mdl 8192]} (18... Nxd3+ $17 {stays on course.} 19. cxd3 Rd7) 19. h5 $18 {[%emt 0:01:31] Chess con chili.} (19. f4 Nxd3+ 20. Rxd3 Rd7 $17) 19... gxh5 {[%emt 0:02:17]} 20. Bxh7+ {[%emt 0:02:09]} Nxh7 $16 {[%emt 0:00:10]} 21. Nxh7 {[%emt 0:00:04][%cal Bg5h7,Bh7f6,Bf6d5][%mdl 32]} Ng6 {[%emt 0:01:10]} 22. Rxh5 $40 {[%emt 0:01:23][%mdl 128] Black is in trouble.} e5 $2 {[%emt 0:01:00][%mdl 8192] [#]} (22... Bb7 $16) 23. O-O-O $2 {[%emt 0:01:37]} (23. Qg5 $1 $18 Bb7 24. Qh6 (24. Nf6+ Kf8 $18)) 23... Qxf6 {[%emt 0:02:14]} 24. Nxf6+ {[%emt 0:00:01]} Kg7 {[%emt 0:00:02]} 25. Ncxd5 {[%emt 0:00:27] Rh7+ is the strong threat. White has more active pieces.} Rxd5 {[%emt 0:01:19]} 26. Nxd5 {[%emt 0:00:13]} ({Not} 26. Rxd5 Be6 $15) 26... Bg4 {[%emt 0:00:03]} 27. Rh7+ {[%emt 0:00:59]} Kxh7 {[%emt 0:00:16]} 28. Nf6+ {[%emt 0:00:10]} Kg7 {[%emt 0:00:09]} (28... Kh6 $16 29. Nxg4+ Kg5) 29. Nxg4 $18 {[%emt 0:00:00][%mdl 4096] Endgame KRN-KRN} Re8 {[%emt 0:01:28]} 30. Rd6 {[%emt 0:00:11]} Re6 $2 {[%emt 0:00:09]} (30... Ra8 {was worth a try.} 31. c3 f5) 31. Rxe6 {[%emt 0:00:08]} fxe6 {[%emt 0:00:01] KN-KN} 32. Kd2 {[%emt 0:00:09]} Kf7 {[%emt 0:00:06]} 33. Ke3 {[%emt 0:00:16]} Ke7 {[%emt 0:00:09]} 34. Ke4 {[%emt 0:00:06]} Kd6 {[%emt 0:00:03]} 35. g3 {[%emt 0:00:06] Prevents Nf4.} a5 {[%emt 0:00:16]} 36. Nh6 {[%emt 0:00:13]} Ke7 {[%emt 0:01:02]} 37. Ng4 {[%emt 0:00:21]} Kd6 {[%emt 0:00:01]} 38. Ne3 {[%emt 0:00:36]} Ne7 {[%emt 0:00:16]} 39. a4 {[%emt 0:00:27]} bxa4 {[%emt 0:00:25]} 40. Nc4+ {[%emt 0:00:11]} Kc5 {[%emt 0:00:05]} 41. Nxa5 {[%emt 0:01:07]} Nc6 {[%emt 0:00:16]} 42. Nxc6 {[%emt 0:00:05] Weighted Error Value: White=0.48/Black=0.81} 1-0